fUSD/lending_fUSD_20240414
["ID","MTS","AMOUNT","RATE_DAILY","PERIOD"]
[322596210,1713101445710,-352.26186397,0.00021,2]
[322596211,1713101445763,-300.98999088,0.00021,2]
[322596212,1713101445775,-301.50556131,0.00021,2]
[322596223,1713102145099,708.76690941,0.00018115,2]
[322596224,1713102145122,53.10309059,0.00018115,2]
[322596225,1713102309719,-200.30576816,0.00019141,2]
[322596226,1713102309741,-155.0,0.00019142,2]
[322596227,1713102309763,-363.29786344,0.00019143,2]
[322596228,1713102309784,-300.0,0.00019173,2]
[322596229,1713102350819,-437.94043748,0.000197,2]
[322596230,1713102350841,-441.68561232,0.0002,2]
[322596231,1713102452219,696.7703186,0.00019857,2]
[322596299,1713102632210,-979.38,0.00019857,2]
[322596301,1713102632226,-232.9696814,0.00019857,2]
[322596304,1713102632238,-320.12679218,0.00019857,2]
[322596306,1713102632251,-3017.6172,0.00019919,2]
[322596308,1713102632264,-456.98,0.00019965,2]
[322596310,1713102632275,-500.0,0.00019998,2]
[322596313,1713102632288,-975.50063785,0.00020019,2]
[322596315,1713102632301,-150.0,0.0002002,2]
[322596317,1713102632313,-1644.60568857,0.00020021,2]
[322596319,1713102632336,-339.76818,0.00020021,2]
[322596320,1713102632382,-2719.05049637,0.00020021,2]
[322596321,1713102632400,-351.68374011,0.00020021,2]
[322596322,1713102633431,-723.93172957,0.00020021,2]
[322596323,1713102633457,-2683.13220739,0.00020021,2]
[322596324,1713102633493,-3428.0,0.00020021,2]
[322596325,1713102633512,-8198.18795799,0.00020021,2]
[322596326,1713102633522,-250.0,0.00020039,2]
[322596327,1713102633531,-800.0,0.00020042,2]
[322596328,1713102633541,-264.14,0.00020213,2]
[322596329,1713102633551,-499.99,0.00020324,2]
[322596330,1713102633560,-200.0,0.00020354,2]
[322596331,1713102633570,-663.68,0.00020354,2]
[322596332,1713102633579,-761.87,0.00020379,2]
[322596333,1713102633589,-150.0,0.00020627,2]
[322596334,1713102633599,-150.0,0.00020686,2]
[322596335,1713102633609,-2118.32514,0.0002079,2]
[322596336,1713102633621,-849.90894913,0.00020798,2]
[322596337,1713102633630,-11615.9264,0.00020798,2]
[322596338,1713102633639,-2500.0,0.000208,2]
[322596339,1713102633649,-475.14142059,0.000208,2]
[322596340,1713102633658,-2894.33837907,0.000208,2]
[322596341,1713102633667,-41406.3474,0.00020898,2]
[322596342,1713102633677,-78479.9809,0.00020898,2]
[322596343,1713102633686,-39974.5807,0.000209,2]
[322596344,1713102633696,-4580.5697,0.000209,2]
[322596345,1713102633705,-153.86155006,0.000209,2]
[322596346,1713102633714,-179.66021463,0.000209,2]
[322596347,1713102633725,-849.90894913,0.000209,2]
[322596348,1713102633735,-204.99865097,0.0002099,2]
[322596349,1713102633749,-290.40069624,0.00020998,2]
[322596350,1713102633758,-2209.86475621,0.00020998,2]
[322596351,1713102633767,-239.8411658,0.00020998,2]
[322596352,1713102633777,-380.11831501,0.00020998,2]
[322596353,1713102633787,-204.87925496,0.00020998,2]
[322596354,1713102633796,-365.71034278,0.00020998,2]
[322596355,1713102633806,-410.54433685,0.00020999,2]
[322596356,1713102633816,-40280.60760476,0.00021,2]
[322596357,1713102633829,-20372.00003,0.00021,2]
[322596358,1713102633840,-8930.14240248,0.00021,2]
[322596359,1713102633851,-1261.33851861,0.00021,2]
[322596360,1713102633864,-7651.50972279,0.00021,2]
[322596361,1713102637722,-2145.76887824,0.00021,2]
[322596362,1713102637740,-1992836.41330513,0.00021,2]
[322596363,1713102637752,-242973.20110996,0.00021,2]
[322596364,1713102637765,-326.91390838,0.00021,2]
[322596365,1713102637775,-313.4,0.00021,2]
[322596366,1713102637784,-391.02,0.00021,2]
[322596367,1713102637794,-715.17033749,0.00021,2]
[322596368,1713102637804,-155.0,0.00021,2]
[322596369,1713102637814,-1919.58734442,0.00021,2]
[322596370,1713102637823,-200.0,0.00021,2]
[322596371,1713102637834,-7459.03459614,0.00021,2]
[322596372,1713102637845,-5121.1302524,0.00021087,2]
[322596373,1713102637855,-10266.21498516,0.00021087,2]
[322596374,1713102637948,-177.09999966,0.00021087,2]
[322596375,1713102637980,-4738.46407358,0.00021087,2]
[322596376,1713102637989,-11273.5654934,0.00021087,2]
[322596377,1713102637999,-189.65213455,0.000211,2]
[322596378,1713102638009,-43976.33816561,0.00021101,2]
[322596379,1713102638021,-940.33955,0.00021101,2]
[322596380,1713102638032,-1637.09935816,0.00021101,2]
[322596381,1713102638045,-14536.46656433,0.00021101,2]
[322596382,1713102638078,-3842.11,0.00021101,2]
[322596384,1713102639991,-2195.85673403,0.00021101,2]
[322596385,1713102640003,-328.83190942,0.00021101,2]
[322596386,1713102640014,-43498.14712275,0.00021101,2]
[322596387,1713102640024,-1538.3038217,0.00021116,2]
[322596388,1713102640033,-153.86155001,0.0002161,2]
[322596389,1713102640043,-169.92,0.0002169,2]
[322596390,1713102640053,-475.14142056,0.00021811,2]
[322596391,1713102640063,-2894.33837903,0.00021811,2]
[322596392,1713102640072,-250.0,0.00021918,2]
[322596393,1713102640082,-250.0,0.00021918,2]
[322596394,1713102640092,-176.71,0.00021918,2]
[322596395,1713102640101,-264.53137314,0.00022,2]
[322596396,1713102640111,-210.0,0.00022022,2]
[322596397,1713102640123,-173.743,0.00022099,2]
[322596398,1713102640132,-173.743,0.00022199,2]
[322596399,1713102640142,-1840.0,0.000222,2]
[322596400,1713102640152,-173.743,0.000223,2]
[322596401,1713102640162,-15410.38642941,0.000223,2]
[322596402,1713102640172,-1130.0,0.000223,2]
[322596403,1713102640182,-153.86155001,0.0002242,2]
[322596404,1713102640192,-800.0,0.00022548,2]
[322596405,1713102640202,-1909.12,0.00022597,2]
[322596406,1713102640212,-761.87,0.00022643,2]
[322596407,1713102640222,-475.14142056,0.00022822,2]
[322596408,1713102640232,-2894.33837903,0.00022822,2]
[322596409,1713102640241,-200.0,0.00022899,2]
[322596410,1713102640251,-1250.0,0.00023,3]
[322596411,1713102640261,-6852.50444872,0.0002301,2]
[322596412,1713102640271,-153.86155001,0.0002323,2]
[322596413,1713102640281,-168.31,0.0002329,2]
[322596414,1713102640291,-1706.80457846,0.0002329,2]
[322596415,1713102640304,-329.10470652,0.0002329,2]
[322596416,1713102640317,-82.41585502,0.0002329,2]
[322596417,1713102640326,-455.01303818,0.000235,2]
[322596418,1713102640416,-4544.98696182,0.000235,2]
[322596419,1713102640426,-475.14142056,0.00023833,2]
[322596420,1713102640436,-2580.51421253,0.00023833,2]
[322596421,1713102640448,-313.8241665,0.00023833,2]
[322596422,1713102640462,-153.86155001,0.0002404,2]
[322596423,1713102640472,-169.92,0.000241,2]
[322596424,1713102640482,-313.4,0.000242,2]
[322596425,1713102640493,-391.02,0.000242,2]
[322596426,1713102640503,-192.0,0.00024224,2]
[322596427,1713102640513,-150.0,0.00024534,2]
[322596428,1713102640523,-427.42335146,0.00024658,2]
[322596429,1713102640718,-72.57664854,0.00024658,2]
[322596430,1713102640728,-500.0,0.000247,3]
[322596431,1713102640739,-888.20454429,0.000248,2]
[322596449,1713102642704,-500.0,0.000211,2]
[322596450,1713102642715,-500.0,0.000211,2]
[322596451,1713102642724,-566.52910254,0.000211,2]
[322596452,1713102642734,-770.40316692,0.000248,2]
[322596453,1713102642751,-340.34795803,0.000248,2]
[322596454,1713102642761,-313.08228223,0.00024844,2]
[322596456,1713102645762,-162.05913833,0.00024844,2]
[322596457,1713102645772,-2894.33837903,0.00024844,2]
[322596458,1713102645782,-153.86155001,0.0002485,2]
[322596459,1713102645791,-1328.29392404,0.00025,2]
[322596460,1713102645801,-155.0,0.00025,2]
[322596461,1713102645811,-563.08685838,0.00025,2]
[322596462,1713102645820,-1362.16740246,0.00025,2]
[322596463,1713102645831,-1300.0,0.00025,3]
[322596464,1713102645841,-800.0,0.00025053,2]
[322596465,1713102645851,-168.31,0.00025212,2]
[322596466,1713102645861,-1909.12,0.00025336,2]
[322596467,1713102645871,-200.0,0.00025443,2]
[322596468,1713102645885,-153.86155001,0.0002566,2]
[322596469,1713102645895,-2118.32514,0.0002579,2]
[322596470,1713102645904,-531.57605774,0.00025829,28]
[322596473,1713102673017,822.55243457,0.000154,2]
[322596474,1713102682535,751.92434253,9e-05,2]
[322596475,1713102713921,2372.42013231,9e-05,2]
[322596476,1713102713941,4000.0,9e-05,2]
[322596477,1713102713962,1086.61446383,9e-05,2]
[322596478,1713102719129,2850.0,6.94e-05,2]
[322596479,1713102752214,63.38553617,0.00015,2]
[322596480,1713102752236,787.85735993,0.00015,2]
[322596481,1713102775952,-3354.38,0.00019919,2]
[322596482,1713102775979,-1255.73249676,0.0002,2]
[322596483,1713102776006,-12031.07198193,0.00020785,2]
[322596484,1713102776031,-172.81552131,0.000208,2]
[322596485,1713102837847,-300.0,0.00025829,28]
[322596512,1713102979494,4372.0,0.00035756,30]
[322596519,1713103311642,1493.76081878,0.00018898,5]
[322596525,1713103688166,697.29,0.00018128,2]
[322596528,1713103816770,2336.64611491,0.00036348,30]
[322596553,1713103832178,-851.99998,0.000198,2]
[322596554,1713103832191,-556.00002,0.000198,2]
[322596555,1713103832201,-469.45618697,0.00019843,2]
[322596556,1713103832213,-530.54381303,0.00019843,2]
[322596557,1713103832223,-230.13,0.00019882,2]
[322596558,1713103832232,-1922.04309666,0.0002,4]
[322596559,1713103832242,-200.0,0.0002,7]
[322596560,1713103832252,-687.72,0.00020046,2]
[322596561,1713103832264,-500.0,0.000201,7]
[322596562,1713103832274,-196.29,0.00020196,2]
[322596563,1713103832283,-700.0,0.000202,7]
[322596564,1713103832292,-1202.16,0.00020244,2]
[322596565,1713103832302,-1000.0,0.000203,7]
[322596566,1713103832311,-697.29,0.00020392,2]
[322596567,1713103832321,-1300.0,0.000204,7]
[322596568,1713103832331,-200.0,0.000205,7]
[322596569,1713103832340,-200.0,0.000206,7]
[322596570,1713103832350,-200.0,0.000207,7]
[322596571,1713103832360,-1503.6819,0.000208,2]
[322596572,1713103832370,-200.0,0.000208,7]
[322596573,1713103832379,-529.26751924,0.00020899,2]
[322596574,1713103832389,-529.2675192,0.00020899,2]
[322596575,1713103832399,-529.2675192,0.00020899,2]
[322596576,1713103832409,-402.33864267,0.00020899,2]
[322596580,1713103837914,-155.0,0.00019799,2]
[322596581,1713103837924,-126.92887653,0.00020899,2]
[322596582,1713103837933,-529.2675192,0.00020899,2]
[322596583,1713103837943,-529.2675192,0.000209,2]
[322596584,1713103837952,-529.2675192,0.000209,2]
[322596585,1713103837962,-529.2675192,0.000209,2]
[322596586,1713103837971,-529.2675192,0.000209,2]
[322596587,1713103837980,-570.1216,0.000209,2]
[322596588,1713103837989,-2404.53510337,0.000209,2]
[322596589,1713103837999,-803.0,0.000209,7]
[322596590,1713103838008,-2327.1845,0.000209,2]
[322596591,1713103838020,-529.2675192,0.000209,2]
[322596592,1713103838029,-153.86155001,0.000209,2]
[322596593,1713103838038,-153.86155001,0.000209,2]
[322596594,1713103838047,-153.86155001,0.000209,2]
[322596595,1713103838057,-12711.59337268,0.000209,2]
[322596596,1713103838066,-153.86155001,0.000209,2]
[322596597,1713103838076,-320.91343542,0.000209,2]
[322596598,1713103838086,-49956.49962513,0.000209,2]
[322596599,1713103838096,-204.99865098,0.0002099,2]
[322596600,1713103838108,-156.74099264,0.00020998,2]
[322596601,1713103838119,-303.95702481,0.00020998,2]
[322596602,1713103838133,-1538.56239464,0.00020998,2]
[322596603,1713103838144,-2799.40270912,0.00020998,2]
[322596604,1713103838153,-458.85981713,0.00020998,2]
[322596605,1713103838163,-75531.26,0.00020999,2]
[322596606,1713103838174,-189.30219592,0.00020999,2]
[322596607,1713103838183,-1095.29848043,0.00020999,5]
[322596608,1713103838193,-1095.29848043,0.00020999,5]
[322596609,1713103838205,-1076.66904248,0.00020999,5]
[322596610,1713103838217,-1076.66904248,0.00020999,5]
[322596613,1713103838227,-1076.66904247,0.00020999,5]
[322596615,1713103838237,-1083.9606333,0.00020999,5]
[322596616,1713103838247,-1083.9606333,0.00020999,5]
[322596617,1713103838257,-1083.9606333,0.00020999,5]
[322596618,1713103838267,-1083.9606333,0.00020999,5]
[322596620,1713103838276,-1083.96063331,0.00020999,5]
[322596622,1713103838285,-1083.9606333,0.00020999,5]
[322596623,1713103838294,-1083.9606333,0.00020999,5]
[322596626,1713103838305,-1083.9606333,0.00020999,5]
[322596628,1713103838314,-1083.9606333,0.00020999,5]
[322596630,1713103838323,-1080.8659014,0.00020999,5]
[322596632,1713103838333,-1080.86590139,0.00020999,5]
[322596650,1713103838646,-1000.0,0.00020999,5]
[322596652,1713103838656,-500.0,0.00020999,2]
[322596654,1713103838666,-442.52164728,0.00020999,2]
[322596656,1713103838675,-500.0,0.00020999,2]
[322596658,1713103838684,-500.0,0.00020999,2]
[322596660,1713103838694,-475.05531948,0.00020999,2]
[322596662,1713103838702,-500.0,0.00020999,2]
[322596664,1713103838711,-500.0,0.00020999,2]
[322596666,1713103838720,-256.41500668,0.00020999,2]
[322596668,1713103838729,-7003441.80501295,0.00021,2]
[322596714,1713103840067,-14438022.6587518,0.00021,2]
[322596715,1713103840079,-269840.67253395,0.00021,2]
[322596716,1713103840115,-66834.02893847,0.00021,2]
[322596717,1713103840137,-97824.82272471,0.00021,2]
[322596718,1713103840148,-600.5,0.00021,2]
[322596719,1713103840159,-384.2290936,0.00021,2]
[322596720,1713103840204,-529.12011047,0.00021,2]
[322596721,1713103840215,-529.068,0.00021,2]
[322596722,1713103840227,-490.959078,0.00021,2]
[322596723,1713103840665,-299.96957545,0.00021,2]
[322596724,1713103841758,-46912.84841661,0.00021,2]
[322596725,1713103841817,-2007.23748182,0.00021,2]
[322596726,1713103841879,-4013927.77523546,0.00021,2]
[322596727,1713103842000,-2099.98375553,0.00021,2]
[322596818,1713103843060,-478.6711612,0.00021,2]
[322596820,1713103843071,-640.64,0.00021,2]
[322596822,1713103843095,-9557.06886555,0.00021,2]
[322596823,1713103843107,-5403.68190335,0.00021,2]
[322596824,1713103843119,-555.36999983,0.00021,2]
[322596825,1713103843147,-2062.48042031,0.00021,2]
[322596826,1713103843180,-1863193.81157097,0.00021,2]
[322596843,1713103843622,-24987.78109917,0.00021,2]
[322597016,1713103845991,-570.59059911,0.00021,2]
[322597017,1713103846003,-321.064,0.00021,2]
[322597018,1713103846060,-16938.0225354,0.00021,2]
[322597019,1713103846070,-7401.67808,0.00021,2]
[322597020,1713103846081,-344.14259764,0.00021,2]
[322597022,1713103863901,150.5,0.0002099,15]
[322597023,1713103864380,150.5,0.0002098,15]
[322597024,1713103864443,150.5,0.0002099,15]
[322597025,1713103864886,294.0,0.0002099,15]
[322597026,1713103864941,150.5,0.0002097,15]
[322597027,1713103864990,150.5,0.0002098,15]
[322597028,1713103865444,294.0,0.0002098,15]
[322597029,1713103865638,154.92,0.0002097,15]
[322597030,1713103866522,294.0,0.0002097,15]
[322597031,1713103951453,9044.61,0.00020999,10]
[322597032,1713103985920,206.0,0.0002099,15]
[322597033,1713103986379,206.0,0.0002098,15]
[322597034,1713103986839,206.0,0.0002097,15]
[322597035,1713104105269,150.5,0.0002099,15]
[322597036,1713104105859,150.5,0.0002098,15]
[322597037,1713104106367,150.5,0.0002097,15]
[322597038,1713104171861,652.69,0.00018483,2]
[322597039,1713104225993,150.5,0.0002099,15]
[322597040,1713104230770,150.5,0.0002098,15]
[322597041,1713104231328,150.5,0.0002097,15]
[322597043,1713104347418,150.5,0.0002099,15]
[322597044,1713104347932,150.5,0.0002098,15]
[322597045,1713104348612,244.09,0.0002097,15]
[322597046,1713104458613,-443.7704705,0.00019581,2]
[322597047,1713104458634,-250.0,0.00019582,2]
[322597048,1713104458657,-2176.78118277,0.00019595,2]
[322597049,1713104458680,-1129.44834673,0.00019596,2]
[322597050,1713104460526,-200.0,0.00019599,2]
[322597051,1713104462000,1292.39123582,0.0001958,2]
[322597052,1713104476077,2507.60876418,0.00019619,2]
[322597053,1713104476109,4000.0,0.00019619,2]
[322597054,1713104476134,4000.0,0.00019619,2]
[322597055,1713104476156,871.04123582,0.00019619,2]
[322597056,1713104522145,214.24,0.00019608,2]
[322597057,1713104608306,982.14733734,0.00019736,2]
[322597058,1713104615873,319.96,0.00019599,2]
[322597059,1713104622302,846.28509045,0.00018898,2]
[322597060,1713104635330,766.32633639,0.00019591,2]
[322597061,1713104635351,1416.15366361,0.00019591,2]
[322597062,1713104679977,2583.84633639,0.00019736,2]
[322597063,1713104679999,4000.0,0.00019736,2]
[322597064,1713104680022,4000.0,0.00019736,2]
[322597068,1713104752072,368.40182129,0.00018128,2]
[322597069,1713104752095,274.26817871,0.00018128,2]
[322597071,1713105013302,3725.73182129,0.00018128,2]
[322597072,1713105013324,669.66904303,0.00018128,2]
[322597081,1713105032117,-414.5696,0.00019442,2]
[322597082,1713105032127,-250.0,0.00019531,2]
[322597083,1713105032137,-840.0,0.00019543,2]
[322597084,1713105032147,-3211.13,0.00019543,2]
[322597085,1713105032156,-150.0,0.00019553,2]
[322597086,1713105032166,-220.06,0.00019562,2]
[322597087,1713105032175,-150.0,0.00019572,2]
[322597088,1713105032185,-1579.04,0.00019573,2]
[322597089,1713105032195,-458.82,0.00019581,2]
[322597090,1713105032204,-203.64,0.00019591,2]
[322597091,1713105032213,-424.08,0.00019765,2]
[322597092,1713105032223,-208.79611017,0.00019948,2]
[322597093,1713105032236,-169.92,0.00020046,2]
[322597094,1713105032245,-234.37,0.00020046,2]
[322597095,1713105032254,-153.9,0.00020196,2]
[322597096,1713105032263,-436.87,0.00020299,2]
[322597097,1713105032271,-436.87,0.00020304,2]
[322597098,1713105032280,-436.87,0.0002031,2]
[322597099,1713105032289,-252.92,0.0002031,2]
[322597100,1713105032299,-436.87,0.00020315,2]
[322597101,1713105032308,-436.87,0.0002032,2]
[322597102,1713105032317,-436.87,0.00020326,2]
[322597103,1713105032327,-1112.11922617,0.00020326,2]
[322597104,1713105032336,-436.87,0.00020331,2]
[322597105,1713105032345,-436.87,0.00020337,2]
[322597106,1713105032355,-436.87,0.00020342,2]
[322597107,1713105032364,-436.87,0.00020347,2]
[322597108,1713105032373,-436.87,0.00020353,2]
[322597109,1713105032384,-436.87,0.00020358,2]
[322597110,1713105032393,-436.87,0.00020363,2]
[322597111,1713105032403,-436.87,0.00020369,2]
[322597112,1713105032412,-436.87,0.00020374,2]
[322597113,1713105032422,-436.87,0.00020379,2]
[322597114,1713105032431,-436.87,0.00020385,2]
[322597115,1713105032441,-436.87,0.0002039,2]
[322597116,1713105032451,-642.67,0.00020392,2]
[322597117,1713105032461,-436.87,0.00020395,2]
[322597118,1713105032470,-436.87,0.00020401,2]
[322597119,1713105032482,-1067.0,0.00020501,2]
[322597120,1713105032491,-153.9,0.00020722,2]
[322597121,1713105032503,-1112.11922617,0.00020814,2]
[322597122,1713105032512,-4779.57377603,0.00020899,2]
[322597123,1713105032536,-13.78952397,0.00020899,2]
[322597124,1713105032545,-986.21047603,0.00020899,2]
[322597131,1713105032764,-4.26302397,0.00020899,2]
[322597132,1713105032773,-235.96738292,0.00020899,2]
[322597133,1713105032783,-992.03313225,0.00020899,2]
[322597134,1713105032792,-318.07603833,0.00020899,2]
[322597135,1713105032802,-155.93706503,0.000209,2]
[322597136,1713105032812,-719.0359173,0.000209,2]
[322597137,1713105032821,-3576.9319962,0.000209,2]
[322597138,1713105032831,-187.52025476,0.000209,2]
[322597139,1713105032840,-207.33406528,0.000209,2]
[322597140,1713105032850,-378.55601742,0.000209,2]
[322597141,1713105032860,-326.91390838,0.0002097,2]
[322597142,1713105032869,-599.41067364,0.0002098,2]
[322597143,1713105032879,-500.0,0.00020998,2]
[322597144,1713105032888,-500.0,0.00020998,2]
[322597145,1713105032897,-500.0,0.00020998,2]
[322597146,1713105032907,-500.0,0.00020998,2]
[322597147,1713105032916,-500.0,0.00020998,2]
[322597148,1713105032926,-360.05204919,0.00020998,2]
[322597149,1713105032934,-3289.42709312,0.00020998,2]
[322597150,1713105032943,-465.70647518,0.00020998,2]
[322597151,1713105032953,-443.44850961,0.00020998,2]
[322597152,1713105032962,-155.0,0.00020998,2]
[322597153,1713105032971,-155.0,0.00020998,2]
[322597154,1713105032982,-197.86031143,0.00020998,2]
[322597155,1713105032992,-33875.24,0.00020999,2]
[322597156,1713105033000,-155.34336927,0.00020999,2]
[322597157,1713105033010,-86062.70865306,0.00020999,2]
[322597158,1713105033054,-1707.40804999,0.00020999,2]
[322597159,1713105033066,-482.53,0.00020999,2]
[322597160,1713105033078,-640.43,0.00020999,2]
[322597161,1713105033102,-11012.5,0.00020999,2]
[322597172,1713105038136,-509.16789362,0.00020999,2]
[322597173,1713105038148,-384.46542681,0.00020999,2]
[322597174,1713105038168,-6993.3588,0.00020999,2]
[322597175,1713105038327,-135999.20926886,0.00020999,2]
[322597176,1713105038338,-436.63471156,0.00020999,2]
[322597177,1713105038350,-901.19631038,0.00020999,2]
[322597227,1713105039843,-56621.73949268,0.00020999,2]
[322597228,1713105039853,-2211.61171423,0.00020999,2]
[322597229,1713105039863,-10028.59280284,0.00020999,2]
[322597230,1713105039873,-241.49838889,0.00020999,2]
[322597231,1713105039883,-1136.78883775,0.00020999,2]
[322597233,1713105039893,-23314.33584788,0.00020999,2]
[322597234,1713105039903,-300.86558246,0.00020999,2]
[322597236,1713105039913,-1082.61280497,0.00020999,5]
[322597238,1713105039923,-1082.61280497,0.00020999,5]
[322597240,1713105039932,-1082.61280497,0.00020999,5]
[322597241,1713105039942,-1082.61280497,0.00020999,5]
[322597242,1713105039951,-1082.61280495,0.00020999,5]
[322597243,1713105039961,-1082.61280497,0.00020999,5]
[322597244,1713105039970,-1082.61280497,0.00020999,5]
[322597245,1713105039979,-1078.47743104,0.00020999,5]
[322597246,1713105039991,-1078.47743103,0.00020999,5]
[322597247,1713105040000,-1078.47743104,0.00020999,5]
[322597248,1713105040009,-1078.47743104,0.00020999,5]
[322597249,1713105040018,-1082.14594083,0.00020999,5]
[322597250,1713105040027,-1082.14594084,0.00020999,5]
[322597251,1713105040036,-1083.23887333,0.00020999,5]
[322597252,1713105040045,-1083.23887331,0.00020999,5]
[322597253,1713105040054,-1083.23887333,0.00020999,5]
[322597254,1713105040063,-1083.23887333,0.00020999,5]
[322597255,1713105040072,-1083.23887333,0.00020999,5]
[322597256,1713105040081,-1083.23887333,0.00020999,5]
[322597257,1713105040091,-1083.23887333,0.00020999,5]
[322597258,1713105040101,-1000.0,0.00020999,5]
[322597259,1713105040110,-442.52164728,0.00020999,2]
[322597260,1713105040119,-500.0,0.00020999,2]
[322597261,1713105040129,-500.0,0.00020999,2]
[322597262,1713105040138,-500.0,0.00020999,2]
[322597263,1713105040147,-500.0,0.00020999,2]
[322597264,1713105040157,-500.0,0.00020999,2]
[322597265,1713105040166,-500.0,0.00020999,2]
[322597266,1713105040176,-500.0,0.00020999,2]
[322597267,1713105040185,-500.0,0.00020999,2]
[322597268,1713105040194,-500.0,0.00020999,2]
[322597269,1713105040203,-500.0,0.00020999,2]
[322597270,1713105040213,-500.0,0.00020999,2]
[322597271,1713105040222,-500.0,0.00020999,2]
[322597272,1713105040231,-500.0,0.00020999,2]
[322597273,1713105040243,-500.0,0.00020999,2]
[322597274,1713105040253,-500.0,0.00020999,2]
[322597275,1713105040262,-500.0,0.00020999,2]
[322597276,1713105040271,-500.0,0.00020999,2]
[322597277,1713105040280,-500.0,0.00020999,2]
[322597278,1713105040289,-500.0,0.00020999,2]
[322597279,1713105040298,-500.0,0.00020999,2]
[322597280,1713105040308,-500.0,0.00020999,2]
[322597281,1713105040317,-438.58534097,0.00020999,2]
[322597282,1713105040326,-500.0,0.00020999,2]
[322597283,1713105040335,-500.0,0.00020999,2]
[322597284,1713105040345,-500.0,0.00020999,2]
[322597285,1713105040355,-6844789.79919921,0.00021,2]
[322597286,1713105040365,-1430.30975011,0.00021,2]
[322597287,1713105040374,-715.48314253,0.00021,2]
[322597288,1713105040383,-316.88,0.00021,2]
[322597289,1713105040392,-395.36,0.00021,2]
[322597290,1713105040402,-296269.38607866,0.00021,2]
[322597291,1713105040414,-4313912.70284409,0.00021,2]
[322597292,1713105040424,-200.0,0.00021,2]
[322597293,1713105040434,-1252.00896,0.000212,2]
[322597294,1713105040443,-153.9,0.00021248,2]
[322597295,1713105040452,-1112.11922617,0.00021301,2]
[322597296,1713105040461,-1252.00896,0.0002151,2]
[322597297,1713105040470,-719.03591721,0.00021718,2]
[322597298,1713105040480,-1252.00897,0.0002183,2]
[322597299,1713105040500,-992.03313217,0.00021899,2]
[322597300,1713105040510,-176.71,0.00021918,2]
[322597301,1713105040520,-250.0,0.00021918,2]
[322597303,1713105040529,-250.0,0.00021918,2]
[322597304,1713105040539,-840.0,0.00021985,2]
[322597306,1713105040549,-1073.0,0.00022,2]
[322597308,1713105040559,-200.0,0.00022049,2]
[322597310,1713105040568,-1252.00896,0.0002214,2]
[322597312,1713105040579,-319.96,0.00022338,2]
[322597314,1713105040589,-1252.00897,0.0002245,2]
[322597316,1713105040598,-1398.0,0.00022497,2]
[322597318,1713105040607,-719.03591721,0.00022536,2]
[322597319,1713105040616,-642.67,0.00022656,2]
[322597321,1713105040626,-1252.00896,0.0002276,2]
[322597322,1713105040635,-173.743,0.00022768,2]
[322597323,1713105040644,-3586.08655837,0.00022899,2]
[322597324,1713105040654,-992.03313217,0.00022899,2]
[322597325,1713105040664,-1250.0,0.00023,3]
[322597326,1713105040673,-168.31,0.0002321,2]
[322597327,1713105040683,-380.0,0.00023288,2]
[322597328,1713105040693,-380.0,0.00023288,2]
[322597329,1713105040702,-380.0,0.00023288,2]
[322597330,1713105040711,-380.0,0.00023288,2]
[322597331,1713105040721,-380.0,0.00023288,2]
[322597332,1713105040731,-314.91,0.00023288,2]
[322597333,1713105040744,-719.03591721,0.00023355,2]
[322597334,1713105040754,-3586.08655837,0.00023899,2]
[322597335,1713105040764,-992.03313217,0.00023899,2]
[322597336,1713105040773,-185.51,0.00023968,2]
[322597337,1713105040783,-719.03591721,0.00024173,2]